[Event "November 21 Early 2023"]
[Site "https://www.chess.com"]
[Date "2023.11.21"]
[Round "2"]
[White "Carlsen, Magnus"]
[Black "Agibileg, Uurtsaikh"]
[Result "1-0"]
[Board "2"]
[TimeControl "180+1"]
[WhiteFideId "1503014"]
[BlackFideId "4901606"]
[WhiteElo "2887"]
[BlackElo "2288"]
[WhiteTeam "NOR"]
[BlackTeam "MGL"]
[WhiteClock "0:02:30"]
[BlackClock "0:00:11"]

1. b4 {[%clk 0:03:00]}  d5 {[%clk 0:02:54]} 2. Bb2 {[%clk 0:03:00]}  Nf6 {[%clk 0:02:54]} 3. Nf3 {[%clk 0:02:59]}  e6 {[%clk 0:02:53]} 4. a3 {[%clk 0:02:58]}  Bd6 {[%clk 0:02:50]} 5. g4 {[%clk 0:02:58]}  Nxg4 {[%clk 0:02:48]} 6. Rg1 {[%clk 0:02:58]}  Nxh2 {[%clk 0:02:45]} 7. Nxh2 {[%clk 0:02:57]}  Bxh2 {[%clk 0:02:46]} 8. Rxg7 {[%clk 0:02:57]}  d4 {[%clk 0:02:42]} 9. e3 {[%clk 0:02:57]}  Be5 {[%clk 0:02:41]} 10. Qg4 {[%clk 0:02:55]}  Kf8 {[%clk 0:02:11]} 11. Rxf7+ {[%clk 0:02:52]}  Kxf7 {[%clk 0:02:07]} 12. Qh5+ {[%clk 0:02:52]}  Kf6 {[%clk 0:02:04]} 13. f4 {[%clk 0:02:51]}  c5 {[%clk 0:01:51]} 14. Qxe5+ {[%clk 0:02:46]}  Kf7 {[%clk 0:01:50]} 15. Qh5+ {[%clk 0:02:46]}  Ke7 {[%clk 0:01:39]} 16. Qxc5+ {[%clk 0:02:45]}  Ke8 {[%clk 0:01:35]} 17. Qh5+ {[%clk 0:02:44]}  Kd7 {[%clk 0:01:30]} 18. Bxd4 {[%clk 0:02:45]}  Re8 {[%clk 0:01:22]} 19. Nc3 {[%clk 0:02:43]}  Nc6 {[%clk 0:01:20]} 20. Bb5 {[%clk 0:02:43]}  Kc7 {[%clk 0:01:19]} 21. Bxc6 {[%clk 0:02:41]}  bxc6 {[%clk 0:01:18]} 22. O-O-O {[%clk 0:02:40]}  a5 {[%clk 0:01:12]} 23. b5 {[%clk 0:02:35]}  Bd7 {[%clk 0:00:58]} 24. Na4 {[%clk 0:02:32]}  Qe7 {[%clk 0:00:54]} 25. Qe5+ {[%clk 0:02:31]}  Kc8 {[%clk 0:00:29]} 26. b6 {[%clk 0:02:31]}  Qxa3+ {[%clk 0:00:11]} 27. Bb2 {[%clk 0:02:30]} 1-0

[Event "November 21 Early 2023"]
[Site "https://www.chess.com"]
[Date "2023.11.21"]
[Round "2"]
[White "Erigaisi Arjun"]
[Black "Yen, William"]
[Result "1-0"]
[Board "3"]
[TimeControl "180+1"]
[WhiteFideId "35009192"]
[BlackFideId "30932025"]
[WhiteElo "2729"]
[BlackElo "1956"]
[WhiteTeam "IND"]
[BlackTeam "USA"]
[WhiteClock "0:02:29"]
[BlackClock "0:00:33"]

1. c4 {[%clk 0:03:00]}  Nf6 {[%clk 0:02:58]} 2. g3 {[%clk 0:02:58]}  g6 {[%clk 0:02:58]} 3. Bg2 {[%clk 0:02:58]}  Bg7 {[%clk 0:02:59]} 4. Nc3 {[%clk 0:02:58]}  O-O {[%clk 0:03:00]} 5. e4 {[%clk 0:02:57]}  d6 {[%clk 0:03:00]} 6. Nge2 {[%clk 0:02:57]}  c6 {[%clk 0:02:56]} 7. d4 {[%clk 0:02:57]}  e5 {[%clk 0:02:53]} 8. O-O {[%clk 0:02:57]}  Qa5 {[%clk 0:02:46]} 9. h3 {[%clk 0:02:54]}  exd4 {[%clk 0:02:44]} 10. Nxd4 {[%clk 0:02:55]}  Re8 {[%clk 0:02:45]} 11. Be3 {[%clk 0:02:47]}  Qb4 {[%clk 0:02:44]} 12. Qe2 {[%clk 0:02:40]}  Nbd7 {[%clk 0:02:01]} 13. a3 {[%clk 0:02:39]}  Qa5 {[%clk 0:02:00]} 14. Rfd1 {[%clk 0:02:39]}  Qc7 {[%clk 0:01:18]} 15. b4 {[%clk 0:02:32]}  h5 {[%clk 0:00:33]} 16. f4 {[%clk 0:02:29]} 1-0

[Event "November 21 Early 2023"]
[Site "https://www.chess.com"]
[Date "2023.11.21"]
[Round "2"]
[White "Makhnev, Denis"]
[Black "Dubov, Daniil"]
[Result "0-1"]
[Board "4"]
[TimeControl "180+1"]
[WhiteFideId "13707647"]
[BlackFideId "24126055"]
[WhiteElo "2533"]
[BlackElo "2767"]
[WhiteTeam "KAZ"]
[BlackTeam "RUS"]
[WhiteClock "0:00:11"]
[BlackClock "0:00:31"]

1. Nf3 {[%clk 0:03:00]}  Nf6 {[%clk 0:02:59]} 2. c4 {[%clk 0:02:59]}  g6 {[%clk 0:02:59]} 3. Nc3 {[%clk 0:02:59]}  Bg7 {[%clk 0:02:59]} 4. g3 {[%clk 0:02:59]}  b6 {[%clk 0:02:57]} 5. Bg2 {[%clk 0:02:59]}  Bb7 {[%clk 0:02:58]} 6. O-O {[%clk 0:02:59]}  c5 {[%clk 0:02:58]} 7. b3 {[%clk 0:02:57]}  O-O {[%clk 0:02:57]} 8. Bb2 {[%clk 0:02:57]}  d6 {[%clk 0:02:58]} 9. d4 {[%clk 0:02:54]}  cxd4 {[%clk 0:02:57]} 10. Nxd4 {[%clk 0:02:55]}  Bxg2 {[%clk 0:02:56]} 11. Kxg2 {[%clk 0:02:56]}  Qc8 {[%clk 0:02:53]} 12. Qd3 {[%clk 0:02:54]}  Nbd7 {[%clk 0:02:51]} 13. Rac1 {[%clk 0:02:53]}  Ne5 {[%clk 0:02:49]} 14. Qd2 {[%clk 0:02:52]}  Qb7+ {[%clk 0:02:49]} 15. Kg1 {[%clk 0:02:46]}  Rac8 {[%clk 0:02:48]} 16. Rfd1 {[%clk 0:02:43]}  Rfe8 {[%clk 0:02:47]} 17. Nc2 {[%clk 0:02:35]}  h5 {[%clk 0:02:44]} 18. Nb4 {[%clk 0:02:33]}  h4 {[%clk 0:02:37]} 19. Ncd5 {[%clk 0:02:22]}  Ned7 {[%clk 0:01:54]} 20. Nxf6+ {[%clk 0:02:12]}  Nxf6 {[%clk 0:01:49]} 21. Nd5 {[%clk 0:02:01]}  Nxd5 {[%clk 0:01:32]} 22. Bxg7 {[%clk 0:02:01]}  Kxg7 {[%clk 0:01:25]} 23. Qxd5 {[%clk 0:01:39]}  Qd7 {[%clk 0:01:16]} 24. Qd4+ {[%clk 0:01:38]}  f6 {[%clk 0:01:16]} 25. Qxh4 {[%clk 0:01:32]}  Rh8 {[%clk 0:01:16]} 26. Qe4 {[%clk 0:01:32]}  Rh3 {[%clk 0:01:14]} 27. Kg2 {[%clk 0:01:03]}  Rch8 {[%clk 0:01:13]} 28. Rh1 {[%clk 0:01:03]}  R8h5 {[%clk 0:01:05]} 29. Rcd1 {[%clk 0:00:57]}  Re5 {[%clk 0:01:00]} 30. Qf3 {[%clk 0:00:54]}  Qe6 {[%clk 0:00:59]} 31. e3 {[%clk 0:00:26]}  Rf5 {[%clk 0:00:44]} 32. Qe2 {[%clk 0:00:26]}  Rfh5 {[%clk 0:00:40]} 33. Rd4 {[%clk 0:00:24]}  Qc8 {[%clk 0:00:36]} 34. Re4 {[%clk 0:00:15]}  e5 {[%clk 0:00:34]} 35. Qg4 {[%clk 0:00:11]}  f5 {[%clk 0:00:31]} 0-1

[Event "November 21 Early 2023"]
[Site "https://www.chess.com"]
[Date "2023.11.21"]
[Round "2"]
[White "Ahmad, Khagan"]
[Black "Nihal Sarin"]
[Result "0-1"]
[Board "6"]
[TimeControl "180+1"]
[WhiteFideId "13431552"]
[BlackFideId "25092340"]
[WhiteElo "2160"]
[BlackElo "2689"]
[WhiteTeam "AZE"]
[BlackTeam "IND"]
[WhiteClock "0:00:01"]
[BlackClock "0:00:07"]

1. Nf3 {[%clk 0:02:47]}  d5 {[%clk 0:02:56]} 2. d4 {[%clk 0:02:46]}  Nf6 {[%clk 0:02:55]} 3. c4 {[%clk 0:02:44]}  e6 {[%clk 0:02:54]} 4. g3 {[%clk 0:02:43]}  Bb4+ {[%clk 0:02:44]} 5. Bd2 {[%clk 0:02:42]}  Bd6 {[%clk 0:02:41]} 6. Qc2 {[%clk 0:02:35]}  h6 {[%clk 0:02:31]} 7. Bg2 {[%clk 0:02:32]}  O-O {[%clk 0:02:30]} 8. O-O {[%clk 0:02:31]}  c6 {[%clk 0:02:25]} 9. b3 {[%clk 0:02:28]}  b5 {[%clk 0:02:13]} 10. Nc3 {[%clk 0:02:23]}  b4 {[%clk 0:01:56]} 11. Na4 {[%clk 0:02:19]}  a5 {[%clk 0:01:56]} 12. c5 {[%clk 0:02:13]}  Bc7 {[%clk 0:01:55]} 13. Bf4 {[%clk 0:02:09]}  Nbd7 {[%clk 0:01:49]} 14. Rfe1 {[%clk 0:01:51]}  Ba6 {[%clk 0:01:45]} 15. Rac1 {[%clk 0:01:34]}  Re8 {[%clk 0:01:44]} 16. e3 {[%clk 0:01:29]}  Bb5 {[%clk 0:01:33]} 17. Nb2 {[%clk 0:00:51]}  Ne4 {[%clk 0:01:19]} 18. Nd2 {[%clk 0:00:47]}  Nc3 {[%clk 0:01:11]} 19. a4 {[%clk 0:00:43]}  Ba6 {[%clk 0:01:05]} 20. Nb1 {[%clk 0:00:41]}  Nxb1 {[%clk 0:00:57]} 21. Qxb1 {[%clk 0:00:40]}  e5 {[%clk 0:00:57]} 22. dxe5 {[%clk 0:00:40]}  Bxe5 {[%clk 0:00:48]} 23. Bxe5 {[%clk 0:00:38]}  Nxe5 {[%clk 0:00:48]} 24. Qc2 {[%clk 0:00:21]}  Qf6 {[%clk 0:00:47]} 25. Qd2 {[%clk 0:00:20]}  Re6 {[%clk 0:00:41]} 26. Qd4 {[%clk 0:00:20]}  Rae8 {[%clk 0:00:39]} 27. h3 {[%clk 0:00:18]}  g5 {[%clk 0:00:35]} 28. Rcd1 {[%clk 0:00:11]}  Kg7 {[%clk 0:00:30]} 29. e4 {[%clk 0:00:12]}  dxe4 {[%clk 0:00:28]} 30. Rxe4 {[%clk 0:00:12]}  Kf8 {[%clk 0:00:26]} 31. Nc4 {[%clk 0:00:10]}  Nxc4 {[%clk 0:00:17]} 32. bxc4 {[%clk 0:00:11]}  Qxd4 {[%clk 0:00:16]} 33. Rexd4 {[%clk 0:00:09]}  Re1+ {[%clk 0:00:15]} 34. Rxe1 {[%clk 0:00:09]}  Rxe1+ {[%clk 0:00:16]} 35. Kh2 {[%clk 0:00:10]}  b3 {[%clk 0:00:17]} 36. Rd2 {[%clk 0:00:09]}  Bxc4 {[%clk 0:00:14]} 37. Bxc6 {[%clk 0:00:09]}  Re5 {[%clk 0:00:15]} 38. Rd8+ {[%clk 0:00:03]}  Kg7 {[%clk 0:00:13]} 39. Rb8 {[%clk 0:00:03]}  Rxc5 {[%clk 0:00:14]} 40. Bf3 {[%clk 0:00:04]}  Be6 {[%clk 0:00:15]} 41. Rb7 {[%clk 0:00:03]}  Rc3 {[%clk 0:00:12]} 42. Bh5 {[%clk 0:00:02]}  Rc2 {[%clk 0:00:07]} 43. Kg2 {[%clk 0:00:01]}  Bd5+ {[%clk 0:00:07]} 0-1

[Event "November 21 Early 2023"]
[Site "https://www.chess.com"]
[Date "2023.11.21"]
[Round "2"]
[White "Erdogmus, Yagiz Kaan"]
[Black "Ambartsumova, Karina"]
[Result "1-0"]
[Board "7"]
[TimeControl "180+1"]
[WhiteFideId "44599790"]
[BlackFideId "4166299"]
[WhiteElo "2359"]
[BlackElo "2240"]
[WhiteTeam "TUR"]
[BlackTeam "RUS"]
[WhiteClock "0:00:34"]
[BlackClock "0:00:12"]

1. e4 {[%clk 0:03:00]}  e5 {[%clk 0:02:59]} 2. Nf3 {[%clk 0:03:00]}  Nc6 {[%clk 0:02:59]} 3. Bc4 {[%clk 0:03:01]}  Nf6 {[%clk 0:02:58]} 4. Ng5 {[%clk 0:03:00]}  d5 {[%clk 0:02:58]} 5. exd5 {[%clk 0:03:01]}  Na5 {[%clk 0:02:58]} 6. Bb5+ {[%clk 0:03:02]}  c6 {[%clk 0:02:58]} 7. dxc6 {[%clk 0:03:03]}  bxc6 {[%clk 0:02:59]} 8. Bd3 {[%clk 0:03:03]}  Be7 {[%clk 0:02:48]} 9. O-O {[%clk 0:03:00]}  h6 {[%clk 0:02:46]} 10. Ne4 {[%clk 0:02:59]}  Nd5 {[%clk 0:02:42]} 11. Ng3 {[%clk 0:02:52]}  Nf4 {[%clk 0:02:29]} 12. Bf5 {[%clk 0:02:41]}  Ba6 {[%clk 0:02:23]} 13. d3 {[%clk 0:02:37]}  g6 {[%clk 0:02:09]} 14. Be4 {[%clk 0:02:35]}  O-O {[%clk 0:01:47]} 15. Re1 {[%clk 0:02:31]}  Bc5 {[%clk 0:01:42]} 16. Be3 {[%clk 0:02:17]}  Bd6 {[%clk 0:01:28]} 17. Nc3 {[%clk 0:02:07]}  f5 {[%clk 0:01:06]} 18. Bf3 {[%clk 0:02:01]}  Qf6 {[%clk 0:01:06]} 19. a3 {[%clk 0:01:43]}  Rad8 {[%clk 0:00:41]} 20. b4 {[%clk 0:01:37]}  Nb7 {[%clk 0:00:36]} 21. b5 {[%clk 0:01:34]}  cxb5 {[%clk 0:00:33]} 22. Nd5 {[%clk 0:01:16]}  Nxd5 {[%clk 0:00:30]} 23. Bxd5+ {[%clk 0:01:17]}  Kg7 {[%clk 0:00:30]} 24. Bxa7 {[%clk 0:01:16]}  Nc5 {[%clk 0:00:25]} 25. d4 {[%clk 0:01:02]}  exd4 {[%clk 0:00:20]} 26. Bxc5 {[%clk 0:00:57]}  Bxc5 {[%clk 0:00:21]} 27. Re6 {[%clk 0:00:58]}  Qh4 {[%clk 0:00:20]} 28. Rxa6 {[%clk 0:00:53]}  Rxd5 {[%clk 0:00:20]} 29. Qf3 {[%clk 0:00:54]}  Rfd8 {[%clk 0:00:19]} 30. Re1 {[%clk 0:00:51]}  d3 {[%clk 0:00:19]} 31. cxd3 {[%clk 0:00:44]}  Rxd3 {[%clk 0:00:19]} 32. Rxg6+ {[%clk 0:00:35]}  Kxg6 {[%clk 0:00:17]} 33. Qxf5+ {[%clk 0:00:34]}  Kg7 {[%clk 0:00:18]} 34. Nh5+ {[%clk 0:00:34]}  Kh8 {[%clk 0:00:16]} 35. Qe5+ {[%clk 0:00:34]}  Kg8 {[%clk 0:00:12]} 36. Qg7# {[%clk 0:00:34]} 1-0

[Event "November 21 Early 2023"]
[Site "https://www.chess.com"]
[Date "2023.11.21"]
[Round "2"]
[White "Trost, Edvin"]
[Black "Lazavik, Denis"]
[Result "1-0"]
[Board "8"]
[TimeControl "180+1"]
[WhiteFideId "1729519"]
[BlackFideId "13515110"]
[WhiteElo "2385"]
[BlackElo "2556"]
[WhiteTeam "SWE"]
[BlackTeam "BLR"]
[WhiteClock "0:00:07"]
[BlackClock "0:00:03"]

1. d4 {[%clk 0:03:00]}  Nf6 {[%clk 0:02:59]} 2. Nf3 {[%clk 0:02:59]}  d5 {[%clk 0:02:59]} 3. c4 {[%clk 0:02:59]}  e6 {[%clk 0:02:59]} 4. g3 {[%clk 0:02:54]}  Bb4+ {[%clk 0:02:58]} 5. Bd2 {[%clk 0:02:54]}  a5 {[%clk 0:02:58]} 6. Qa4+ {[%clk 0:02:41]}  Bd7 {[%clk 0:02:56]} 7. Qc2 {[%clk 0:02:42]}  dxc4 {[%clk 0:02:46]} 8. Qxc4 {[%clk 0:02:38]}  Bxd2+ {[%clk 0:02:34]} 9. Nbxd2 {[%clk 0:02:39]}  Bc6 {[%clk 0:02:35]} 10. Bg2 {[%clk 0:02:38]}  O-O {[%clk 0:02:35]} 11. O-O {[%clk 0:02:38]}  Nbd7 {[%clk 0:02:33]} 12. Qc2 {[%clk 0:02:35]}  Bxf3 {[%clk 0:02:23]} 13. Nxf3 {[%clk 0:02:33]}  c6 {[%clk 0:02:23]} 14. e4 {[%clk 0:02:30]}  Qe7 {[%clk 0:02:22]} 15. Rfe1 {[%clk 0:02:28]}  Rfd8 {[%clk 0:02:22]} 16. Rad1 {[%clk 0:02:27]}  h6 {[%clk 0:02:21]} 17. h4 {[%clk 0:02:26]}  Nb6 {[%clk 0:02:18]} 18. Ne5 {[%clk 0:02:24]}  a4 {[%clk 0:02:17]} 19. a3 {[%clk 0:02:21]}  Nfd7 {[%clk 0:02:16]} 20. Nd3 {[%clk 0:02:20]}  Rac8 {[%clk 0:02:13]} 21. Nf4 {[%clk 0:02:15]}  e5 {[%clk 0:02:10]} 22. Ne2 {[%clk 0:02:10]}  Nf6 {[%clk 0:02:08]} 23. Qc3 {[%clk 0:02:06]}  Nbd7 {[%clk 0:01:52]} 24. Qc2 {[%clk 0:01:50]}  Ra8 {[%clk 0:01:50]} 25. dxe5 {[%clk 0:01:37]}  Qxe5 {[%clk 0:01:46]} 26. Nd4 {[%clk 0:01:30]}  g6 {[%clk 0:01:28]} 27. Rd2 {[%clk 0:01:25]}  Nc5 {[%clk 0:01:12]} 28. f4 {[%clk 0:01:20]}  Qe7 {[%clk 0:01:11]} 29. e5 {[%clk 0:01:17]}  Nh5 {[%clk 0:01:08]} 30. Qc3 {[%clk 0:01:09]}  Ne6 {[%clk 0:01:05]} 31. Red1 {[%clk 0:01:08]}  Nxd4 {[%clk 0:00:58]} 32. Rxd4 {[%clk 0:01:09]}  Rxd4 {[%clk 0:00:59]} 33. Rxd4 {[%clk 0:01:08]}  Rd8 {[%clk 0:00:59]} 34. Kf2 {[%clk 0:01:06]}  Ng7 {[%clk 0:00:53]} 35. Bh3 {[%clk 0:01:06]}  g5 {[%clk 0:00:33]} 36. hxg5 {[%clk 0:01:00]}  hxg5 {[%clk 0:00:34]} 37. f5 {[%clk 0:01:01]}  Qc7 {[%clk 0:00:09]} 38. Kf3 {[%clk 0:00:47]}  Re8 {[%clk 0:00:07]} 39. f6 {[%clk 0:00:45]}  Qxe5 {[%clk 0:00:04]} 40. Rd2 {[%clk 0:00:35]}  Qe4+ {[%clk 0:00:04]} 41. Kf2 {[%clk 0:00:33]}  g4 {[%clk 0:00:04]} 42. Bf1 {[%clk 0:00:26]}  Qf5+ {[%clk 0:00:04]} 43. Kg1 {[%clk 0:00:26]}  Nh5 {[%clk 0:00:05]} 44. Rf2 {[%clk 0:00:26]}  Qg5 {[%clk 0:00:05]} 45. Be2 {[%clk 0:00:18]}  Re3 {[%clk 0:00:05]} 46. Qd4 {[%clk 0:00:17]}  Rxg3+ {[%clk 0:00:05]} 47. Kf1 {[%clk 0:00:17]}  Rh3 {[%clk 0:00:03]} 48. Bxg4 {[%clk 0:00:15]}  Ng3+ {[%clk 0:00:03]} 49. Kg2 {[%clk 0:00:15]}  Rh6 {[%clk 0:00:02]} 50. Kxg3 {[%clk 0:00:10]}  Qh4+ {[%clk 0:00:02]} 51. Kg2 {[%clk 0:00:08]}  Qh2+ {[%clk 0:00:02]} 52. Kf1 {[%clk 0:00:07]}  Qh1+ {[%clk 0:00:03]} 53. Ke2 {[%clk 0:00:07]}  Rh4 {[%clk 0:00:03]} 54. Qd8+ {[%clk 0:00:07]}  Kh7 {[%clk 0:00:04]} 55. Bf5+ {[%clk 0:00:08]}  Kh6 {[%clk 0:00:04]} 56. Qh8+ {[%clk 0:00:08]}  Kg5 {[%clk 0:00:05]} 57. Qg7+ {[%clk 0:00:09]}  Kh5 {[%clk 0:00:05]} 58. Bg4+ {[%clk 0:00:06]}  Rxg4 {[%clk 0:00:03]} 59. Qh7+ {[%clk 0:00:07]} 1-0

[Event "November 21 Early 2023"]
[Site "https://www.chess.com"]
[Date "2023.11.21"]
[Round "2"]
[White "Le, Quang Liem"]
[Black "Arhan_Anand"]
[Result "1-0"]
[Board "9"]
[TimeControl "180+1"]
[WhiteFideId "12401137"]
[WhiteElo "2665"]
[BlackElo "2639"]
[WhiteTeam "VIE"]
[WhiteClock "0:00:15"]
[BlackClock "0:00:18"]

1. Nf3 {[%clk 0:03:00]}  d5 {[%clk 0:02:59]} 2. e3 {[%clk 0:03:00]}  Nf6 {[%clk 0:02:59]} 3. c4 {[%clk 0:03:00]}  e6 {[%clk 0:02:59]} 4. Nc3 {[%clk 0:02:59]}  c6 {[%clk 0:02:58]} 5. b3 {[%clk 0:02:59]}  Nbd7 {[%clk 0:02:57]} 6. Bb2 {[%clk 0:02:59]}  Bd6 {[%clk 0:02:56]} 7. Qc2 {[%clk 0:02:58]}  O-O {[%clk 0:02:53]} 8. Rg1 {[%clk 0:02:58]}  e5 {[%clk 0:02:30]} 9. cxd5 {[%clk 0:02:58]}  Nxd5 {[%clk 0:02:30]} 10. Ne4 {[%clk 0:02:44]}  Bc7 {[%clk 0:02:26]} 11. g4 {[%clk 0:02:43]}  Re8 {[%clk 0:02:18]} 12. a3 {[%clk 0:02:42]}  Nf8 {[%clk 0:02:17]} 13. h4 {[%clk 0:02:36]}  Ng6 {[%clk 0:01:54]} 14. h5 {[%clk 0:02:17]}  Nh4 {[%clk 0:01:54]} 15. Be2 {[%clk 0:02:17]}  Nxf3+ {[%clk 0:01:51]} 16. Bxf3 {[%clk 0:02:18]}  Be6 {[%clk 0:01:50]} 17. Nc5 {[%clk 0:02:14]}  Qc8 {[%clk 0:01:45]} 18. Rc1 {[%clk 0:02:08]}  Bd6 {[%clk 0:01:41]} 19. g5 {[%clk 0:02:04]}  Bxc5 {[%clk 0:01:36]} 20. Qxc5 {[%clk 0:02:05]}  Bf5 {[%clk 0:01:24]} 21. e4 {[%clk 0:01:18]}  Nf4 {[%clk 0:01:23]} 22. Qe3 {[%clk 0:01:19]}  Bh3 {[%clk 0:01:19]} 23. Bxe5 {[%clk 0:01:17]}  Rxe5 {[%clk 0:01:13]} 24. Qxf4 {[%clk 0:01:18]}  Qe6 {[%clk 0:01:13]} 25. Rg3 {[%clk 0:01:10]}  Re8 {[%clk 0:00:57]} 26. d4 {[%clk 0:00:47]}  Ra5 {[%clk 0:00:56]} 27. a4 {[%clk 0:00:44]}  Bf5 {[%clk 0:00:52]} 28. Rc3 {[%clk 0:00:34]}  Qd7 {[%clk 0:00:47]} 29. Rd3 {[%clk 0:00:22]}  g6 {[%clk 0:00:37]} 30. Kf1 {[%clk 0:00:22]}  Be6 {[%clk 0:00:36]} 31. h6 {[%clk 0:00:21]}  Qe7 {[%clk 0:00:36]} 32. Qf6 {[%clk 0:00:19]}  Qxf6 {[%clk 0:00:36]} 33. gxf6 {[%clk 0:00:20]}  b5 {[%clk 0:00:36]} 34. axb5 {[%clk 0:00:18]}  cxb5 {[%clk 0:00:37]} 35. d5 {[%clk 0:00:17]}  Bd7 {[%clk 0:00:35]} 36. Rc3 {[%clk 0:00:17]}  Ra3 {[%clk 0:00:32]} 37. Rc7 {[%clk 0:00:15]}  Bc8 {[%clk 0:00:33]} 38. Be2 {[%clk 0:00:15]}  a6 {[%clk 0:00:31]} 39. Rgc3 {[%clk 0:00:15]}  Ra1+ {[%clk 0:00:18]} 40. Kg2 {[%clk 0:00:15]} 1-0

[Event "November 21 Early 2023"]
[Site "https://www.chess.com"]
[Date "2023.11.21"]
[Round "2"]
[White "Sadhwani, Raunak"]
[Black "SmirnovAlexandrA"]
[Result "1-0"]
[Board "11"]
[TimeControl "180+1"]
[WhiteFideId "35093487"]
[WhiteElo "2668"]
[BlackElo "2637"]
[WhiteTeam "IND"]
[WhiteClock "0:00:04"]
[BlackClock "0:00:00"]

1. b3 {[%clk 0:03:00]}  Nf6 {[%clk 0:02:54]} 2. Bb2 {[%clk 0:02:58]}  c5 {[%clk 0:02:54]} 3. Nf3 {[%clk 0:02:55]}  Nc6 {[%clk 0:02:53]} 4. c4 {[%clk 0:02:40]}  g6 {[%clk 0:02:46]} 5. g3 {[%clk 0:02:32]}  Bg7 {[%clk 0:02:45]} 6. Bg2 {[%clk 0:02:27]}  O-O {[%clk 0:02:44]} 7. O-O {[%clk 0:02:24]}  d6 {[%clk 0:02:45]} 8. d4 {[%clk 0:02:17]}  cxd4 {[%clk 0:02:21]} 9. Nxd4 {[%clk 0:02:18]}  Bd7 {[%clk 0:02:09]} 10. Nc3 {[%clk 0:02:04]}  Nxd4 {[%clk 0:02:03]} 11. Qxd4 {[%clk 0:01:59]}  Bc6 {[%clk 0:02:02]} 12. Nd5 {[%clk 0:01:53]}  Bxd5 {[%clk 0:01:58]} 13. Bxd5 {[%clk 0:01:52]}  Ne8 {[%clk 0:01:49]} 14. Qd2 {[%clk 0:01:51]}  Bxb2 {[%clk 0:01:48]} 15. Qxb2 {[%clk 0:01:51]}  Qd7 {[%clk 0:01:47]} 16. Rfd1 {[%clk 0:01:51]}  Nf6 {[%clk 0:01:46]} 17. Bf3 {[%clk 0:01:52]}  Rac8 {[%clk 0:01:45]} 18. a4 {[%clk 0:01:51]}  a5 {[%clk 0:01:43]} 19. b4 {[%clk 0:01:39]}  b6 {[%clk 0:01:40]} 20. c5 {[%clk 0:01:36]}  bxc5 {[%clk 0:01:31]} 21. bxa5 {[%clk 0:01:30]}  c4 {[%clk 0:01:02]} 22. a6 {[%clk 0:01:17]}  d5 {[%clk 0:00:59]} 23. Qb5 {[%clk 0:01:02]}  Rfd8 {[%clk 0:00:49]} 24. e4 {[%clk 0:00:44]}  e6 {[%clk 0:00:46]} 25. exd5 {[%clk 0:00:41]}  exd5 {[%clk 0:00:47]} 26. Rac1 {[%clk 0:00:39]}  Qa7 {[%clk 0:00:40]} 27. Qb7 {[%clk 0:00:29]}  Qc5 {[%clk 0:00:40]} 28. Qb5 {[%clk 0:00:21]}  Qa7 {[%clk 0:00:39]} 29. Qa5 {[%clk 0:00:18]}  Rd6 {[%clk 0:00:36]} 30. Qb4 {[%clk 0:00:13]}  Rxa6 {[%clk 0:00:32]} 31. Ra1 {[%clk 0:00:12]}  Qc5 {[%clk 0:00:28]} 32. Qc3 {[%clk 0:00:12]}  Kg7 {[%clk 0:00:24]} 33. h4 {[%clk 0:00:12]}  h5 {[%clk 0:00:23]} 34. Rxd5 {[%clk 0:00:11]}  Qe7 {[%clk 0:00:17]} 35. a5 {[%clk 0:00:11]}  Rc5 {[%clk 0:00:16]} 36. Rxc5 {[%clk 0:00:11]}  Qxc5 {[%clk 0:00:17]} 37. Bb7 {[%clk 0:00:12]}  Rd6 {[%clk 0:00:11]} 38. a6 {[%clk 0:00:12]}  Rd3 {[%clk 0:00:10]} 39. Qa5 {[%clk 0:00:04]}  Qa7 {[%clk 0:00:09]} 40. Kg2 {[%clk 0:00:04]}  Ng4 {[%clk 0:00:09]} 41. Ra2 {[%clk 0:00:04]}  c3 {[%clk 0:00:07]} 42. Qg5 {[%clk 0:00:04]}  f6 {[%clk 0:00:04]} 43. Qf4 {[%clk 0:00:05]}  Rd4 {[%clk 0:00:03]} 44. Qc7+ {[%clk 0:00:05]}  Kh6 {[%clk 0:00:00]} 45. Qxc3 {[%clk 0:00:04]} 1-0

[Event "November 21 Early 2023"]
[Site "https://www.chess.com"]
[Date "2023.11.21"]
[Round "2"]
[White "Bortnyk, Olexandr"]
[Black "Weishaeutel, Moritz"]
[Result "1-0"]
[Board "13"]
[TimeControl "180+1"]
[WhiteFideId "14120828"]
[BlackFideId "12967300"]
[WhiteElo "2725"]
[BlackElo "2321"]
[WhiteTeam "UKR"]
[BlackTeam "GER"]
[WhiteClock "0:00:31"]
[BlackClock "0:00:04"]

1. e4 {[%clk 0:02:59]}  e5 {[%clk 0:03:00]} 2. Nf3 {[%clk 0:02:58]}  Nf6 {[%clk 0:03:01]} 3. d4 {[%clk 0:02:57]}  Nxe4 {[%clk 0:03:01]} 4. dxe5 {[%clk 0:02:57]}  d5 {[%clk 0:02:59]} 5. Bd3 {[%clk 0:02:50]}  Nc5 {[%clk 0:02:56]} 6. O-O {[%clk 0:02:47]}  Be7 {[%clk 0:02:57]} 7. h3 {[%clk 0:02:45]}  O-O {[%clk 0:02:56]} 8. Nc3 {[%clk 0:02:46]}  c6 {[%clk 0:02:56]} 9. Re1 {[%clk 0:02:46]}  Be6 {[%clk 0:02:56]} 10. Nd4 {[%clk 0:02:46]}  Nbd7 {[%clk 0:02:55]} 11. Bf5 {[%clk 0:02:37]}  g6 {[%clk 0:02:44]} 12. Bxe6 {[%clk 0:02:33]}  Nxe6 {[%clk 0:02:44]} 13. Bh6 {[%clk 0:02:33]}  Re8 {[%clk 0:02:41]} 14. Nxe6 {[%clk 0:02:33]}  fxe6 {[%clk 0:02:42]} 15. Qg4 {[%clk 0:02:33]}  Bf8 {[%clk 0:02:41]} 16. Bg5 {[%clk 0:02:31]}  Qb6 {[%clk 0:02:37]} 17. Bf6 {[%clk 0:02:22]}  Qxb2 {[%clk 0:02:27]} 18. Ne2 {[%clk 0:02:20]}  Nxf6 {[%clk 0:02:26]} 19. exf6 {[%clk 0:02:16]}  Qxf6 {[%clk 0:02:27]} 20. Ng3 {[%clk 0:02:15]}  Bd6 {[%clk 0:02:20]} 21. Rab1 {[%clk 0:02:14]}  b6 {[%clk 0:02:16]} 22. Qa4 {[%clk 0:02:11]}  Bxg3 {[%clk 0:02:13]} 23. fxg3 {[%clk 0:02:11]}  e5 {[%clk 0:02:14]} 24. c4 {[%clk 0:02:10]}  e4 {[%clk 0:02:05]} 25. cxd5 {[%clk 0:02:08]}  cxd5 {[%clk 0:02:06]} 26. Rbd1 {[%clk 0:02:08]}  Qe5 {[%clk 0:01:56]} 27. Qd7 {[%clk 0:02:01]}  Rad8 {[%clk 0:01:51]} 28. Qxa7 {[%clk 0:02:01]}  Rd6 {[%clk 0:01:41]} 29. Qc7 {[%clk 0:01:49]}  e3 {[%clk 0:01:17]} 30. Kh2 {[%clk 0:01:33]}  d4 {[%clk 0:01:17]} 31. Rd3 {[%clk 0:01:17]}  h5 {[%clk 0:01:04]} 32. h4 {[%clk 0:01:00]}  g5 {[%clk 0:01:03]} 33. Rf1 {[%clk 0:00:56]}  gxh4 {[%clk 0:00:36]} 34. Qf7+ {[%clk 0:00:50]}  Kh8 {[%clk 0:00:36]} 35. Rf5 {[%clk 0:00:46]}  Qxg3+ {[%clk 0:00:32]} 36. Kh1 {[%clk 0:00:47]}  Qe1+ {[%clk 0:00:11]} 37. Kh2 {[%clk 0:00:47]}  Qg3+ {[%clk 0:00:11]} 38. Kg1 {[%clk 0:00:47]}  Qe1+ {[%clk 0:00:03]} 39. Rf1 {[%clk 0:00:48]}  Qxf1+ {[%clk 0:00:03]} 40. Kxf1 {[%clk 0:00:49]}  Ree6 {[%clk 0:00:03]} 41. Qxh5+ {[%clk 0:00:46]}  Kg7 {[%clk 0:00:03]} 42. Qxh4 {[%clk 0:00:37]}  e2+ {[%clk 0:00:03]} 43. Ke1 {[%clk 0:00:37]}  Rc6 {[%clk 0:00:03]} 44. Qxd4+ {[%clk 0:00:35]}  Kf7 {[%clk 0:00:03]} 45. Qd7+ {[%clk 0:00:34]}  Kg6 {[%clk 0:00:03]} 46. Rg3+ {[%clk 0:00:32]}  Kf5 {[%clk 0:00:04]} 47. Rf3+ {[%clk 0:00:31]}  Ke4 {[%clk 0:00:03]} 48. Qd3+ {[%clk 0:00:31]}  Ke5 {[%clk 0:00:04]} 49. Rf5# {[%clk 0:00:31]} 1-0